bitfinex/quotes_BTCUSD_20250705
["timestamp","ask_amount","ask_price","bid_price","bid_amount"]
[1751717242865,1.1670928,108230.0,108220.0,0.22176976]
[1751717244123,1.25852973,108230.0,108220.0,0.22176976]
[1751717244938,1.28619231,108230.0,108220.0,0.22176976]
[1751717245569,1.28617157,108230.0,108220.0,0.22176976]
[1751717247761,0.88836583,108230.0,108220.0,0.22176976]
[1751717248091,1.19473464,108230.0,108220.0,0.22176976]
[1751717251764,1.19473464,108230.0,108220.0,0.22186976]
[1751717251977,1.07676579,108230.0,108220.0,0.22186976]
[1751717252819,1.07676579,108230.0,108220.0,0.21262967]
[1751717253140,0.7969289,108230.0,108220.0,0.21262967]
[1751717253349,1.07676579,108230.0,108220.0,0.22186976]
[1751717253999,1.10646665,108230.0,108220.0,0.22186976]
[1751717256736,0.82457976,108230.0,108220.0,0.22186976]
[1751717256920,0.82418122,108230.0,108220.0,0.22186976]
[1751717257129,1.07431725,108230.0,108220.0,0.22186976]
[1751717259452,1.07431725,108230.0,108220.0,0.21262967]
[1751717259662,1.48250784,108230.0,108220.0,0.0001]
[1751717260305,1.45487047,108230.0,108220.0,0.0001]
[1751717260918,0.89619669,108230.0,108220.0,0.0001]
[1751717261117,1.45587047,108230.0,108220.0,0.0001]
[1751717261356,1.51722854,108230.0,108220.0,0.0001]
[1751717261587,1.23739165,108230.0,108220.0,0.0001]
[1751717262428,1.32882858,108230.0,108220.0,0.0001]
[1751717262832,1.60866547,108230.0,108220.0,0.0001]
[1751717264347,1.32882858,108230.0,108220.0,0.0001]
[1751717264755,1.23739165,108230.0,108220.0,0.0001]
[1751717264964,1.23739165,108230.0,108220.0,0.00934043]
[1751717265963,1.20047488,108230.0,108220.0,0.00934043]
[1751717266192,1.20047488,108230.0,108220.0,0.19414915]
[1751717266968,1.48031177,108230.0,108220.0,0.0001]
[1751717267317,1.5717487,108230.0,108220.0,0.0001]
[1751717268265,1.60866347,108230.0,108220.0,0.0001]
[1751717268512,1.60871347,108230.0,108220.0,0.0001]
[1751717268685,1.5717987,108230.0,108220.0,0.0001]
[1751717269095,1.01212492,108230.0,108220.0,0.0001]
[1751717269318,1.5717987,108230.0,108220.0,0.0001]
[1751717272569,1.01212492,108230.0,108220.0,0.0001]
[1751717272797,1.5717987,108230.0,108220.0,0.0001]
[1751717275504,1.6517987,108230.0,108220.0,0.0001]
[1751717277780,1.3117987,108230.0,108220.0,0.0001]
[1751717278319,1.6517987,108230.0,108220.0,0.0001]
[1751717281645,1.3117987,108230.0,108220.0,0.0001]
[1751717282496,1.6517987,108230.0,108220.0,0.0001]
[1751717287386,1.65180055,108230.0,108220.0,0.0001]
[1751717289558,1.09212677,108230.0,108220.0,0.0001]
[1751717289795,1.65180055,108230.0,108220.0,0.0001]
[1751717295964,1.59646497,108230.0,108220.0,0.0001]
[1751717298204,1.67024575,108230.0,108220.0,0.0001]
[1751717301444,0.19404898,108220.0,108210.0,0.0001]
[1751717301674,1.14251469,108220.0,108210.0,0.0001]
[1751717302305,1.15178931,108220.0,108210.0,0.0001]
[1751717302518,1.17899218,108220.0,108210.0,0.0001]
[1751717302740,1.18099218,108220.0,108210.0,0.0001]
[1751717302978,1.18399218,108220.0,108210.0,0.0001]
[1751717321343,1.18199218,108220.0,108210.0,0.0001]
[1751717321546,1.18499218,108220.0,108210.0,0.0001]
[1751717322009,1.18199218,108220.0,108210.0,0.0001]
[1751717322207,1.18599218,108220.0,108210.0,0.0001]
[1751717322414,1.96876992,108220.0,108210.0,0.0001]
[1751717322622,2.32716993,108220.0,108210.0,0.0001]
[1751717322835,0.22686691,108210.0,108200.0,0.002]
[1751717323050,1.23408299,108210.0,108200.0,0.00204698]
[1751717324029,1.17974878,108210.0,108200.0,0.00204698]
[1751717324236,1.23505729,108210.0,108200.0,0.00204698]
[1751717324445,1.17974878,108210.0,108200.0,0.00204698]
[1751717324661,1.25352956,108210.0,108200.0,0.00204698]
[1751717324880,1.25252956,108210.0,108200.0,0.00204698]
[1751717325313,1.25552956,108210.0,108200.0,0.00204698]
[1751717325748,1.25952956,108210.0,108200.0,0.00204698]
[1751717326198,1.18574878,108210.0,108200.0,0.00204698]
[1751717329502,1.20028963,108210.0,108200.0,0.00204698]
[1751717330869,0.66840485,108210.0,108200.0,0.00204698]
[1751717331079,1.22807863,108210.0,108200.0,0.00204698]
[1751717332214,1.28331478,108210.0,108200.0,0.00204698]
[1751717337498,1.36331478,108210.0,108200.0,0.00204698]
[1751717343195,1.30807863,108210.0,108200.0,0.00204698]
[1751717346069,1.31455306,108210.0,108200.0,0.00204698]
[1751717347228,1.38829384,108210.0,108200.0,0.00204698]
[1751717351223,0.53408485,108200.0,108190.0,0.10850276]
[1751717351429,1.94466189,108200.0,108190.0,0.10850276]
[1751717352357,1.94566189,108200.0,108190.0,0.10850276]
[1751717353823,1.94766189,108200.0,108190.0,0.10850276]
[1751717355159,1.38798811,108200.0,108190.0,0.10850276]
[1751717355356,1.94767411,108200.0,108190.0,0.10850276]
[1751717357750,2.01552244,108200.0,108190.0,0.10850276]
[1751717357947,2.01552247,108200.0,108190.0,0.10850276]
[1751717359280,1.94767414,108200.0,108190.0,0.10850276]
[1751717359748,1.02523953,108200.0,108190.0,0.34374845]
[1751717359985,1.68632144,108200.0,108190.0,0.34374845]
[1751717360478,1.68632144,108200.0,108190.0,0.3529911]
[1751717360893,1.3143183,108200.0,108190.0,0.3529911]
[1751717361100,1.5014783,108200.0,108190.0,0.36223358]
[1751717361329,1.11171995,108200.0,108190.0,0.37147598]
[1751717361557,1.16710142,108200.0,108190.0,0.37147598]
[1751717361998,1.17634322,108200.0,108190.0,0.37147598]
[1751717362638,1.45618011,108200.0,108190.0,0.37147598]
[1751717363890,1.46542208,108200.0,108190.0,0.37147598]
[1751717364346,1.46541945,108200.0,108190.0,0.37147598]
[1751717364997,1.44328522,108200.0,108190.0,0.37147598]
[1751717365195,1.35108925,108200.0,108190.0,0.37147598]
[1751717366652,1.35108925,108200.0,108190.0,0.14964575]
[1751717366653,1.59964452,108200.0,108190.0,0.14964575]
[1751717366883,1.59040272,108200.0,108190.0,0.14040276]
[1751717367118,1.58116075,108200.0,108190.0,0.14040276]
[1751717367581,1.64016839,108200.0,108190.0,0.14040276]
[1751717367813,1.69548806,108200.0,108190.0,0.33450571]
[1751717368088,1.41565117,108200.0,108190.0,0.35299127]
[1751717368317,1.69548806,108200.0,108190.0,0.35299127]
[1751717369713,1.69548806,108200.0,108190.0,0.34374862]
[1751717369929,1.69548806,108200.0,108190.0,0.35299144]
[1751717370601,1.69548806,108200.0,108190.0,0.14964575]
[1751717370804,1.69548806,108200.0,108190.0,0.31184853]
[1751717371017,1.69548806,108200.0,108190.0,0.32109127]
[1751717371750,1.41565117,108200.0,108190.0,0.30260571]
[1751717371912,1.69548806,108200.0,108190.0,0.30260571]
[1751717372240,1.69548806,108200.0,108190.0,0.31184862]
[1751717373281,1.69548659,108200.0,108190.0,0.31184862]
[1751717376533,1.69548659,108200.0,108190.0,0.11774575]
[1751717381130,1.69548804,108200.0,108190.0,0.11774575]
[1751717381582,1.69548804,108200.0,108190.0,0.32109127]
[1751717381900,1.62253496,108200.0,108190.0,0.32109127]
[1751717382106,1.62253565,108200.0,108190.0,0.32109127]
[1751717384233,1.43761277,108200.0,108190.0,0.36243375]
[1751717384446,1.44685491,108200.0,108190.0,0.36243375]
[1751717385252,1.44685491,108200.0,108190.0,0.37167615]
[1751717385654,1.16701802,108200.0,108190.0,0.37167615]
[1751717385876,0.95221203,108200.0,108190.0,0.65151304]
[1751717386075,1.1577752,108200.0,108190.0,0.65151304]
[1751717386289,1.14853357,108200.0,108190.0,0.65151304]
[1751717386908,1.14853679,108200.0,108190.0,0.65151304]
[1751717387317,1.14853754,108200.0,108190.0,0.65151304]
[1751717387833,1.14853869,108200.0,108190.0,0.65151304]
[1751717388979,1.14853869,108200.0,108190.0,0.37167615]
[1751717389142,1.15778032,108200.0,108190.0,0.37167615]
[1751717389536,1.14853869,108200.0,108190.0,0.37167615]
[1751717389736,1.15778032,108200.0,108190.0,0.37167615]
[1751717391655,1.14853877,108200.0,108190.0,0.65151304]
[1751717392061,1.13929723,108200.0,108190.0,0.65151304]
[1751717392364,1.09321902,108200.0,108190.0,0.65151304]
[1751717392807,0.89689756,108200.0,108190.0,0.65151304]
[1751717392932,1.08397756,108200.0,108190.0,0.65151304]
[1751717393157,1.09321902,108200.0,108190.0,0.65151304]
[1751717393710,1.09321902,108200.0,108190.0,0.37167615]
[1751717394329,1.09321902,108200.0,108190.0,0.65151304]
[1751717395028,1.09321911,108200.0,108190.0,0.65151304]
[1751717395496,1.08397765,108200.0,108190.0,0.65151304]
[1751717395741,1.09321902,108200.0,108190.0,0.65151304]
[1751717396441,0.60481902,108200.0,108190.0,0.65151304]
[1751717396669,0.41773902,108200.0,108190.0,0.65151304]
[1751717396910,0.6167604,108200.0,108190.0,0.65151304]
[1751717397374,0.4296804,108200.0,108190.0,0.65151304]
[1751717397609,0.0896804,108200.0,108190.0,0.72881906]
[1751717397858,0.23984062,108200.0,108190.0,0.65151304]
[1751717398578,0.21117061,108200.0,108190.0,0.65151304]
[1751717405200,0.18904,108200.0,108190.0,0.65151304]
[1751717421811,0.18904,108200.0,108190.0,0.61941304]
[1751717422297,0.21117061,108200.0,108190.0,0.61941304]
[1751717428532,0.20917061,108200.0,108190.0,0.61941304]
[1751717446819,0.20917061,108200.0,108190.0,0.33957615]
[1751717447062,0.20917061,108200.0,108190.0,0.61941304]
[1751717453407,0.22497061,108200.0,108190.0,0.61941304]
[1751717453587,0.23997061,108200.0,108190.0,0.61941304]
[1751717456398,0.2399853,108200.0,108190.0,0.61941304]
[1751717456611,0.2399853,108200.0,108190.0,0.33957615]
[1751717456789,0.2399853,108200.0,108190.0,0.61941304]
[1751717464325,0.2399853,108200.0,108190.0,0.33957615]
[1751717464548,0.2399853,108200.0,108190.0,0.61941304]
[1751717479285,0.0221453,108200.0,108190.0,0.61941304]
[1751717479510,0.2089853,108200.0,108190.0,0.61941304]
[1751717483455,0.2255853,108200.0,108190.0,0.61941304]
[1751717485320,0.2255453,108200.0,108190.0,0.61941304]
[1751717490530,0.2255453,108200.0,108190.0,0.33957615]
[1751717490937,0.2409453,108200.0,108190.0,0.61941304]
[1751717498595,0.2409053,108200.0,108190.0,0.61941304]
[1751717504544,0.2088653,108200.0,108190.0,0.61941304]
[1751717505587,0.2247653,108200.0,108190.0,0.61941304]
[1751717506841,0.2247653,108200.0,108190.0,0.74124997]
[1751717506842,0.2088653,108200.0,108190.0,0.74124997]
[1751717507057,0.0221453,108200.0,108190.0,0.74124997]
[1751717507268,0.2088653,108200.0,108190.0,0.74124997]
[1751717508518,0.2088653,108200.0,108190.0,0.74324997]
[1751717508947,0.0221453,108200.0,108190.0,0.74324997]
[1751717509092,0.2088653,108200.0,108190.0,0.74324997]
[1751717509507,0.2088653,108200.0,108190.0,0.72884997]
[1751717509894,0.2088653,108200.0,108190.0,0.71384997]
[1751717510727,0.0221453,108200.0,108190.0,0.74544997]
[1751717511039,0.2088653,108200.0,108190.0,0.74544997]
[1751717511455,0.0221453,108200.0,108190.0,0.74544997]
[1751717511663,0.2088653,108200.0,108190.0,0.74544997]
[1751717513887,0.2088653,108200.0,108190.0,0.72924997]
[1751717514093,0.2088653,108200.0,108190.0,0.71384997]
[1751717516412,0.18672,108200.0,108190.0,0.71384997]
[1751717516623,0.18672,108200.0,108190.0,0.43401308]
[1751717516798,0.18672,108200.0,108190.0,0.71384997]
[1751717520576,0.08169298,108210.0,108200.0,0.21256827]
[1751717520791,0.26837298,108210.0,108200.0,0.21256827]
[1751717522292,0.26837298,108210.0,108200.0,0.22162067]
[1751717523660,0.26837298,108210.0,108200.0,0.21256827]
[1751717524362,0.54820987,108210.0,108200.0,0.21256827]
[1751717525301,0.49840389,108210.0,108200.0,0.21256827]
[1751717525512,0.54821012,108210.0,108200.0,0.21256827]
[1751717525923,0.54821012,108210.0,108200.0,0.22168742]
[1751717526157,0.54821012,108210.0,108200.0,0.21256827]
[1751717536441,0.26837323,108210.0,108200.0,0.21256827]
[1751717540521,0.26837323,108210.0,108200.0,0.49240516]
[1751717542023,0.08169323,108210.0,108200.0,0.49240516]
[1751717542220,0.26833323,108210.0,108200.0,0.49240516]
[1751717543327,0.26835884,108210.0,108200.0,0.49240516]
[1751717546960,0.26835884,108210.0,108200.0,0.21256827]
[1751717563074,0.26835884,108210.0,108200.0,0.49240516]
[1751717567757,0.26835884,108210.0,108200.0,0.21256827]
[1751717569787,0.54819573,108210.0,108200.0,0.21256827]
[1751717571037,0.26835884,108210.0,108200.0,0.21256827]
[1751717571286,0.54819573,108210.0,108200.0,0.21256827]
[1751717578370,0.26835884,108210.0,108200.0,0.21256827]
[1751717579840,0.54819573,108210.0,108200.0,0.21256827]
[1751717583868,0.26835884,108210.0,108200.0,0.49240516]
[1751717586076,0.26835884,108210.0,108200.0,0.21256827]
[1751717616232,0.06541884,108210.0,108200.0,0.49240516]
[1751717616378,0.23635884,108210.0,108200.0,0.49240516]
[1751717617418,0.23635884,108210.0,108200.0,0.21256827]
[1751717617575,0.23635884,108210.0,108200.0,0.49240516]
[1751717627369,0.25145884,108210.0,108200.0,0.49240516]
[1751717628527,0.22377448,108210.0,108200.0,0.49240516]
[1751717629397,0.25145884,108210.0,108200.0,0.49240516]
[1751717629817,0.25141884,108210.0,108200.0,0.49240516]
[1751717631147,0.22373448,108210.0,108200.0,0.49240516]
[1751717631365,0.23913448,108210.0,108200.0,0.49240516]
[1751717635429,0.26681884,108210.0,108200.0,0.49240516]
[1751717651483,0.26681884,108210.0,108200.0,0.49250516]
[1751717651679,0.26686884,108210.0,108200.0,0.49250516]
[1751717665254,0.08046884,108210.0,108200.0,0.49250516]
[1751717665460,0.26678884,108210.0,108200.0,0.49250516]
[1751717666724,0.08046884,108210.0,108200.0,0.49250516]
[1751717666936,0.26674884,108210.0,108200.0,0.49250516]
[1751717669977,0.26674884,108210.0,108200.0,0.21266827]
[1751717670179,0.26674884,108210.0,108200.0,0.49250516]
[1751717670312,0.08046884,108210.0,108200.0,0.49250516]
[1751717670514,0.26674884,108210.0,108200.0,0.49250516]
[1751717673321,0.26674884,108210.0,108200.0,0.21266827]
[1751717678844,0.26674884,108210.0,108200.0,0.49250516]
[1751717684691,0.26674884,108210.0,108200.0,0.21266827]
[1751717700767,0.26675976,108210.0,108200.0,0.21266827]
[1751717702920,0.27600028,108210.0,108200.0,0.21266827]
[1751717703122,0.28524097,108210.0,108200.0,0.21266827]
[1751717703423,0.56507786,108210.0,108200.0,0.21266827]
[1751717703638,0.55583717,108210.0,108200.0,0.21266827]
[1751717704046,0.56507777,108210.0,108200.0,0.21266827]
[1751717712086,0.54659665,108210.0,108200.0,0.21266827]
[1751717712288,0.55583717,108210.0,108200.0,0.21266827]
[1751717713406,0.54659665,108210.0,108200.0,0.21266827]
[1751717713881,0.55583717,108210.0,108200.0,0.21266827]
[1751717715459,0.27600028,108210.0,108200.0,0.21266827]
[1751717716281,0.28524097,108210.0,108200.0,0.21266827]
[1751717717402,0.58355983,108210.0,108200.0,0.19418493]
[1751717717546,0.29448183,108210.0,108200.0,0.21266827]
[1751717717754,0.26663976,108210.0,108200.0,0.21266827]
[1751717717966,0.25123976,108210.0,108200.0,0.21266827]
[1751717718158,0.23613976,108210.0,108200.0,0.49250516]
[1751717720813,0.25263976,108210.0,108200.0,0.49250516]
[1751717721618,0.25263976,108210.0,108200.0,0.21266827]
[1751717724579,0.25263976,108210.0,108200.0,0.49250516]
[1751717735119,0.26853976,108210.0,108200.0,0.49250516]
[1751717737982,0.25259976,108210.0,108200.0,0.49250516]
[1751717739162,0.04997976,108210.0,108200.0,0.49250516]
[1751717739572,0.20840934,108210.0,108200.0,0.89437898]
[1751717740738,0.02228934,108210.0,108200.0,0.89437898]
[1751717740941,0.20840934,108210.0,108200.0,0.89437898]
[1751717741412,0.186257,108210.0,108200.0,0.89437898]
[1751717741610,0.000137,108210.0,108200.0,0.89437898]
[1751717742053,0.000137,108210.0,108200.0,0.89737898]
[1751717754396,0.000137,108210.0,108200.0,0.91191983]
[1751717754397,1e-08,108210.0,108200.0,0.91191983]
[1751717755079,1e-08,108210.0,108200.0,0.91091983]
[1751717755300,1e-08,108210.0,108200.0,0.34924605]
[1751717755503,1e-08,108210.0,108200.0,0.91091983]
[1751717755708,1e-08,108210.0,108200.0,0.91491983]
[1751717756351,1e-08,108210.0,108200.0,1.10099983]
[1751717762543,1e-08,108210.0,108200.0,0.54132605]
[1751717762795,1e-08,108210.0,108200.0,1.10099983]
[1751717765895,1e-08,108210.0,108200.0,1.09576983]
[1751717766600,1e-08,108210.0,108200.0,1.12354283]
[1751717768291,1e-08,108210.0,108200.0,1.16866283]
[1751717768858,1e-08,108210.0,108200.0,1.13806283]
[1751717771500,1e-08,108210.0,108200.0,0.57838905]
[1751717771718,1e-08,108210.0,108200.0,0.34718905]
[1751717771931,0.03130001,108210.0,108200.0,0.67214594]
[1751717772141,0.03130001,108210.0,108200.0,0.93744198]
[1751717772572,0.03130001,108210.0,108200.0,0.89232198]
[1751717772778,0.03130001,108210.0,108200.0,0.3777682]
[1751717772991,0.03130001,108210.0,108200.0,0.93744198]
[1751717777788,0.03130001,108210.0,108200.0,1.04584474]
[1751717778853,1e-08,108210.0,108200.0,1.04584474]
[1751717790915,1e-08,108210.0,108200.0,0.48617096]
[1751717791130,1e-08,108210.0,108200.0,1.04584474]
[1751717791376,0.01610001,108210.0,108200.0,1.04584474]
[1751717791588,0.01610001,108210.0,108200.0,1.00072474]
[1751717791798,0.01610001,108210.0,108200.0,1.04584474]
[1751717793569,0.01610001,108210.0,108200.0,0.48617096]
[1751717793782,0.01610001,108210.0,108200.0,1.04584474]
[1751717795258,0.03240001,108210.0,108200.0,1.00072474]
[1751717795468,0.03240001,108210.0,108200.0,0.76600785]
[1751717795687,0.03240001,108210.0,108200.0,0.72088785]
[1751717795898,0.5316752,108210.0,108200.0,0.32184103]
[1751717797009,0.5316752,108210.0,108200.0,0.31784103]
[1751717797216,0.55381409,108210.0,108200.0,0.31684103]
[1751717797429,0.52037579,108210.0,108200.0,0.31684103]
[1751717797632,0.52037579,108210.0,108200.0,0.31784103]
[1751717797898,0.52961648,108210.0,108200.0,0.31784103]
[1751717798114,0.52961639,108210.0,108200.0,0.31784103]
[1751717800225,0.52961631,108210.0,108200.0,0.31784103]
[1751717800501,0.538857,108210.0,108200.0,0.31784103]
[1751717800683,0.6212504,108210.0,108200.0,0.31784103]
[1751717804615,0.61200971,108210.0,108200.0,0.31784103]
[1751717804951,0.6212504,108210.0,108200.0,0.31784103]
[1751717806147,0.62125031,108210.0,108200.0,0.31784103]
[1751717806627,0.61200971,108210.0,108200.0,0.31784103]
[1751717807244,0.6212504,108210.0,108200.0,0.31784103]
[1751717807783,0.34141351,108210.0,108200.0,0.31784103]
[1751717807979,0.59911151,108210.0,108200.0,0.31784103]
[1751717808188,0.6212504,108210.0,108200.0,0.31784103]
[1751717809598,0.60276919,108210.0,108200.0,0.31784103]
[1751717814433,0.3229323,108210.0,108200.0,0.31784103]
[1751717814635,0.4982369,108210.0,108200.0,0.31784103]
[1751717814847,0.52037579,108210.0,108200.0,0.31784103]
[1751717821446,0.52961631,108210.0,108200.0,0.31784103]
[1751717821652,0.52037579,108210.0,108200.0,0.31784103]
[1751717821861,0.52035117,108210.0,108200.0,0.31784103]
[1751717822266,0.6059063,108210.0,108200.0,0.31784103]
[1751717823617,0.05451428,108210.0,108200.0,0.59767792]
[1751717823843,0.18600001,108210.0,108200.0,0.59767792]
[1751717824414,0.22401428,108210.0,108200.0,0.59767792]
[1751717827457,0.20811428,108210.0,108200.0,0.59767792]
[1751717828548,0.02211428,108210.0,108200.0,0.68911485]
[1751717828754,0.20811428,108210.0,108200.0,0.72121485]
[1751717829018,0.02211428,108210.0,108200.0,1.00105174]
[1751717829230,1e-08,108210.0,108200.0,1.00105174]
[1751717831098,1e-08,108210.0,108200.0,1.02882674]
[1751717839156,1e-08,108210.0,108200.0,1.01302674]
[1751717840204,1e-08,108210.0,108200.0,0.99672674]
[1751717841514,1e-08,108210.0,108200.0,0.43705296]
[1751717841717,1e-08,108210.0,108200.0,0.99672674]
[1751717848073,1e-08,108210.0,108200.0,1.18272674]
[1751717850388,1e-08,108210.0,108200.0,0.99672674]
[1751717850591,1e-08,108210.0,108200.0,1.22780674]
[1751717851236,1e-08,108210.0,108200.0,0.99672674]
[1751717851440,1e-08,108210.0,108200.0,1.22780674]
[1751717860518,1e-08,108210.0,108200.0,0.99672674]
[1751717860719,1e-08,108210.0,108200.0,1.22776674]
[1751717867316,0.01610001,108210.0,108200.0,1.22776674]
[1751717870528,0.01610001,108210.0,108200.0,1.04180674]
[1751717872330,0.01610001,108210.0,108200.0,0.48213296]
[1751717872581,0.01610001,108210.0,108200.0,1.04180674]
[1751717879542,0.01610001,108210.0,108200.0,0.76196985]
[1751717879757,0.01610001,108210.0,108200.0,1.04180674]
[1751717880911,0.01610001,108210.0,108200.0,0.99672674]
[1751717881122,0.03120001,108210.0,108200.0,0.76196985]
[1751717881329,0.0533486,108210.0,108200.0,0.73419485]
[1751717881590,0.06544253,108210.0,108200.0,0.73419485]
[1751717881806,0.0533486,108210.0,108200.0,0.73419485]
[1751717883214,0.03120001,108210.0,108200.0,0.73419485]
[1751717889914,0.03120001,108210.0,108200.0,0.45435796]
[1751717890096,0.03120001,108210.0,108200.0,0.73419485]
[1751717893066,0.0310348,108210.0,108200.0,0.73419485]
[1751717899162,0.0310848,108210.0,108200.0,0.73419485]
[1751717899566,0.0310848,108210.0,108200.0,0.92015485]
[1751717901402,0.0310848,108210.0,108200.0,0.73419485]
[1751717906085,0.0310848,108210.0,108200.0,0.73419485]
[1751717908300,0.05322536,108210.0,108200.0,0.73419485]
[1751717908504,0.05322536,108210.0,108200.0,0.68911485]
[1751717908722,0.05322536,108210.0,108200.0,0.73419485]
[1751717918380,0.05323315,108210.0,108200.0,0.73419485]
[1751717923831,0.0310848,108210.0,108200.0,0.73419485]
[1751717924033,0.05323313,108210.0,108200.0,0.73419485]
[1751717929611,0.05323316,108210.0,108200.0,0.73419485]
[1751717929809,0.0310848,108210.0,108200.0,0.73419485]
[1751717930016,0.05323316,108210.0,108200.0,0.73419485]
[1751717938380,0.05323316,108210.0,108200.0,0.45435796]
[1751717938715,0.05323316,108210.0,108200.0,0.73419485]
[1751717940728,0.05323316,108210.0,108200.0,0.45435796]
[1751717940906,0.05323316,108210.0,108200.0,0.73419485]
[1751717949267,0.05323281,108210.0,108200.0,0.73419485]
[1751717951426,0.05323281,108210.0,108200.0,0.45435796]
[1751717951615,0.05323281,108210.0,108200.0,0.73419485]
[1751717966979,0.0310848,108210.0,108200.0,0.45435796]
[1751717967234,0.0532332,108210.0,108200.0,0.45435796]
[1751717967455,0.0532332,108210.0,108200.0,0.73419485]
[1751717983986,0.34231061,108210.0,108200.0,0.36288103]
[1751717984310,0.35155138,108210.0,108200.0,0.31784103]
[1751717984569,0.3515513,108210.0,108200.0,0.31784103]
[1751717984766,0.34231061,108210.0,108200.0,0.31784103]
[1751717984914,0.3515513,108210.0,108200.0,0.31784103]
[1751717985119,0.34231061,108210.0,108200.0,0.31784103]
[1751717986466,0.34231061,108210.0,108200.0,0.36288103]
[1751717987699,0.33307009,108210.0,108200.0,0.36288103]
[1751717988045,0.38650275,108210.0,108200.0,0.31784103]
[1751717988243,0.39574335,108210.0,108200.0,0.31784103]
[1751717989218,0.09742534,108210.0,108200.0,0.31784103]
[1751717989503,0.37726223,108210.0,108200.0,0.31784103]
[1751717989921,0.09742534,108210.0,108200.0,0.31784103]
[1751717992001,0.0532332,108210.0,108200.0,0.31784103]
[1751717998066,0.06247372,108210.0,108200.0,0.31784103]
[1751717998308,0.07171441,108210.0,108200.0,0.31784103]
[1751717998588,0.3700337,108210.0,108200.0,0.3178412]
[1751717998799,0.53637821,108210.0,108200.0,0.11050276]
[1751717999002,0.93533704,108210.0,108200.0,0.11050276]
[1751717999232,0.65550015,108210.0,108200.0,0.11050276]
[1751717999464,0.69241031,108210.0,108200.0,0.11050276]
[1751718000086,0.69241031,108210.0,108200.0,0.10950276]
[1751718000288,0.69241031,108210.0,108200.0,0.10850276]
[1751718000464,0.69541031,108210.0,108200.0,0.10850276]
[1751718000675,0.70484817,108210.0,108200.0,0.10850276]
[1751718001514,0.70484817,108210.0,108200.0,0.31182975]
[1751718001733,0.33357435,108210.0,108200.0,0.32107163]
[1751718001934,0.61541124,108210.0,108200.0,0.32107163]
[1751718002363,0.59692892,108210.0,108200.0,0.30258778]
[1751718003239,0.56001876,108210.0,108200.0,0.30258778]
[1751718003841,0.64001876,108210.0,108200.0,0.31182983]
[1751718004026,0.73145569,108210.0,108200.0,0.31182983]
[1751718008413,0.73145569,108210.0,108200.0,0.32107171]
[1751718009180,0.73145569,108210.0,108200.0,0.31182983]
[1751718009380,0.73145569,108210.0,108200.0,0.10850276]
[1751718012930,1.44272951,108210.0,108200.0,0.10850276]
[1751718013080,1.45195466,108210.0,108200.0,0.10850276]
[1751718013480,1.5073199,108210.0,108200.0,0.10850276]
[1751718013678,1.5351069,108210.0,108200.0,0.10850276]
[1751718026281,1.49819674,108210.0,108200.0,0.10850276]
[1751718026432,1.68419674,108210.0,108200.0,0.10850276]
[1751718027740,1.69873759,108210.0,108200.0,0.10850276]
[1751718027970,1.72638413,108210.0,108200.0,0.10850276]
[1751718028179,1.67101889,108210.0,108200.0,0.10850276]
[1751718028487,1.66901889,108210.0,108200.0,0.10850276]
[1751718028835,1.67201889,108210.0,108200.0,0.10850276]
[1751718029647,1.66901889,108210.0,108200.0,0.10850276]
[1751718030056,1.74783921,108210.0,108200.0,0.10850276]
[1751718030842,1.67401889,108210.0,108200.0,0.10850276]
[1751718031313,1.74783921,108210.0,108200.0,0.10850276]
[1751718036576,1.74783921,108210.0,108200.0,0.05297263]
[1751718040956,1.74783921,108210.0,108190.0,0.0001]
[1751718040957,0.19408485,108200.0,108190.0,0.0001]
[1751718041163,1.52697931,108200.0,108190.0,0.0001]
[1751718041370,1.24714242,108200.0,108190.0,0.0001]
[1751718041571,1.55476931,108200.0,108190.0,0.0001]
[1751718042181,1.55676931,108200.0,108190.0,0.0001]
[1751718046650,1.50150863,108200.0,108190.0,0.0001]
[1751718046852,1.22167174,108200.0,108190.0,0.0001]
[1751718047492,1.57532895,108200.0,108190.0,0.0001]
[1751718048530,1.57332895,108200.0,108190.0,0.0001]
[1751718048734,1.91332895,108200.0,108190.0,0.0001]
[1751718048938,1.91832895,108200.0,108190.0,0.0001]
[1751718050501,1.63849206,108200.0,108190.0,0.0001]
[1751718051159,1.91832895,108200.0,108190.0,0.0001]
[1751718051598,1.63849206,108200.0,108190.0,0.0001]
[1751718051798,1.91832895,108200.0,108190.0,0.0001]
[1751718053053,1.63849206,108200.0,108190.0,0.0001]
[1751718054337,1.91832895,108200.0,108190.0,0.0001]
[1751718054537,0.22530278,108190.0,108180.0,0.0021]
[1751718054737,1.14024245,108190.0,108180.0,0.0021]
[1751718055164,1.16803345,108190.0,108180.0,0.0021]
[1751718055777,1.25947038,108190.0,108180.0,0.0021]
[1751718055915,1.26047038,108190.0,108180.0,0.0021]
[1751718056296,1.16903345,108190.0,108180.0,0.0021]
[1751718058450,1.5235743,108190.0,108180.0,0.0021]
[1751718058680,1.46833374,108190.0,108180.0,0.0021]
[1751718058882,1.54315406,108190.0,108180.0,0.0021]
[1751718059706,1.54215406,108190.0,108180.0,0.0021]
[1751718059914,1.55977067,108190.0,108180.0,0.0021]
[1751718060134,1.56277067,108190.0,108180.0,0.0021]
[1751718060556,1.56177067,108190.0,108180.0,0.0021]
[1751718060769,1.63559099,108190.0,108180.0,0.0021]
[1751718060986,1.63959099,108190.0,108180.0,0.0031]
[1751718063813,1.56577067,108190.0,108180.0,0.0031]
[1751718066322,1.71953764,108190.0,108180.0,0.0031]
[1751718067995,2.20793764,108190.0,108180.0,0.0031]
[1751718070371,1.52630608,108190.0,108180.0,0.0031]
[1751718070574,1.71702265,108190.0,108180.0,0.0031]
[1751718070919,2.02885954,108190.0,108180.0,0.0031]
[1751718071125,2.10267986,108190.0,108180.0,0.0031]
[1751718073391,2.10269136,108190.0,108180.0,0.0031]
[1751718073590,2.19412829,108190.0,108180.0,0.0031]
[1751718076849,2.11412829,108190.0,108180.0,0.0031]
[1751718078480,2.18412829,108190.0,108180.0,0.0031]
[1751718079044,2.18417829,108190.0,108180.0,0.0031]
[1751718080168,0.19412081,108180.0,108170.0,0.24588745]
[1751718080279,1.12312453,108180.0,108170.0,0.24588745]
[1751718080689,1.15091653,108180.0,108170.0,0.23664292]
[1751718082166,1.15191653,108180.0,108170.0,0.00326]
[1751718083248,1.15491653,108180.0,108170.0,0.00326]
[1751718088259,0.59524275,108180.0,108170.0,0.00326]
[1751718088476,1.15491653,108180.0,108170.0,0.00326]
[1751718089746,1.15491653,108180.0,108170.0,0.18815414]
[1751718089941,0.59524275,108180.0,108170.0,0.19739876]
[1751718090193,1.15491653,108180.0,108170.0,0.00326]
[1751718094051,0.59524275,108180.0,108170.0,0.00326]
[1751718094197,1.15491653,108180.0,108170.0,0.00326]
[1751718095936,1.15491653,108180.0,108170.0,0.00336]
[1751718096977,0.96855653,108180.0,108170.0,0.00336]
[1751718097195,1.15495653,108180.0,108170.0,0.00336]
[1751718098188,1.17105653,108180.0,108170.0,0.00336]
[1751718099387,1.15495653,108180.0,108170.0,0.00336]